lending/lending_fUSD_20250425
["ID","MTS","AMOUNT","RATE_DAILY","PERIOD"]
[359002171,1745617838442,-25244.1354433,0.00019886,2]
[359002172,1745617838452,-6695.10883242,0.00019886,2]
[359002173,1745617838464,-172303.31408548,0.00019886,2]
[359002174,1745617838475,-3948.86104109,0.00019887,2]
[359002175,1745617838486,-2032.30257187,0.0001989,2]
[359002176,1745617838497,-2032.30257183,0.00019891,2]
[359002177,1745617838509,-12500.0,0.00019891,2]
[359002178,1745617838520,-2032.30257183,0.00019892,2]
[359002179,1745617838531,-2032.30257183,0.00019893,2]
[359002180,1745617838542,-2032.30257183,0.00019894,2]
[359002181,1745617838552,-2032.30257183,0.00019896,2]
[359002182,1745617838563,-2032.30257183,0.00019897,2]
[359002183,1745617838574,-2032.30257183,0.00019898,2]
[359002184,1745617838584,-2032.30257183,0.00019899,2]
[359002185,1745617838595,-17355.7965,0.000199,2]
[359002186,1745617838605,-12500.0,0.000199,2]
[359002187,1745617838616,-23323.56,0.000199,3]
[359002188,1745617838627,-2924.11980919,0.000199,2]
[359002189,1745617838639,-7955.15591193,0.000199,2]
[359002190,1745617838649,-3948.86104109,0.000199,2]
[359002191,1745617838660,-196.70592184,0.000199,2]
[359002192,1745617838670,-2032.30257183,0.000199,2]
[359002193,1745617838680,-188.59597844,0.000199,3]
[359002194,1745617838691,-169.72532865,0.000199,2]
[359002195,1745617838702,-500.0,0.00019903,2]
[359002196,1745617838712,-500.0,0.00019973,2]
[359002197,1745617838723,-160.82173264,0.00019973,2]
[359002198,1745617838734,-500.0,0.00019973,2]
[359002199,1745617838746,-153.18957804,0.00019973,2]
[359002200,1745617838756,-500.0,0.00019973,2]
[359002201,1745617838766,-500.0,0.00019973,2]
[359002202,1745617838777,-4343.70865249,0.0001999,2]
[359002203,1745617838788,-500.0,0.00019999,2]
[359002204,1745617838798,-500.0,0.00019999,2]
[359002205,1745617838809,-500.0,0.00019999,2]
[359002206,1745617838821,-300.0,0.00019999,2]
[359002207,1745617838832,-300.0,0.00019999,2]
[359002208,1745617838844,-300.0,0.00019999,2]
[359002209,1745617838855,-191443.52858648,0.0002,2]
[359002332,1745617841017,-463.29456544,0.000199,2]
[359002334,1745617841027,-36048.81500514,0.0002,2]
[359002336,1745617841042,-1141.89,0.0002,2]
[359002339,1745617841054,-8956.38412251,0.0002,2]
[359002347,1745617841122,-5232332.61338473,0.0002,2]
[359002438,1745617845950,-380.042,0.0002,2]
[359002440,1745617884283,-349.47199999,0.0002,2]
[359002441,1745617884295,-947.278,0.0002,2]
[359002442,1745617884306,-1137.6,0.0002,2]
[359002445,1745618185955,500.0,0.00019152,2]
[359002446,1745618199220,210.8,0.00027425,30]
[359002447,1745618202112,1015.39,0.00019025,2]
[359002451,1745618239189,23900.0,0.00018933,2]
[359002452,1745618274111,1947.92,0.0001702,2]
[359002453,1745618354088,150.0,0.00018855,2]
[359002454,1745618359761,171.27,0.00018855,2]
[359002456,1745618553314,194.33,0.000188,2]
[359002457,1745618553436,194.33,0.000282,120]
[359002458,1745618612641,200.0,0.00018799,2]
[359002468,1745618794502,1000.0,0.00018824,2]
[359002469,1745618799462,1830.6,0.00019282,2]
[359002470,1745618803136,-201.70490207,0.00019284,2]
[359002471,1745618827169,250.0,0.00017,2]
[359002472,1745618828416,300.0,0.00019,2]
[359002473,1745618911363,824.2353079,0.00019208,2]
[359002476,1745618959141,200.0,0.00019112,2]
[359002514,1745618998561,449.32,0.00018785,2]
[359002515,1745618999947,150.0,0.00018785,7]
[359002516,1745619000994,250.0,0.00018785,2]
[359002580,1745619032999,-1746.21509793,0.00019284,2]
[359002582,1745619033010,-200.0,0.00019314,2]
[359002584,1745619033019,-250.0,0.00019314,2]
[359002586,1745619033029,-88.11584932,0.00019345,2]
[359002589,1745619033054,-111.88415068,0.00019345,2]
[359002592,1745619033064,-500.0,0.00019405,2]
[359002594,1745619033074,-166.68,0.00019411,2]
[359002596,1745619033084,-200.0,0.00019494,2]
[359002598,1745619033094,-815.93584917,0.00019672,2]
[359002600,1745619033107,-8.29945873,0.00019672,2]
[359002602,1745619033117,-789.77220829,0.00019703,2]
[359002604,1745619033127,-1200.0,0.0001972,2]
[359002606,1745619033136,-282.67807058,0.0001972,2]
[359002618,1745619038045,-17.32192942,0.0001972,2]
[359002619,1745619038056,-401.73496797,0.00019721,2]
[359002620,1745619038069,-403.3,0.00019721,2]
[359002621,1745619038092,-1103.78704119,0.00019721,2]
[359002622,1745619038104,-645.67810413,0.00019721,2]
[359002623,1745619038189,-779.54,0.00019721,2]
[359002624,1745619038215,-14021.75638671,0.00019721,2]
[359002625,1745619038225,-789.77220821,0.00019725,2]
[359002626,1745619038236,-12500.0,0.00019742,2]
[359002627,1745619038247,-789.77220821,0.00019747,2]
[359002628,1745619038258,-366.0,0.00019748,2]
[359002629,1745619038268,-857.15,0.00019749,2]
[359002630,1745619038278,-177.59,0.00019749,2]
[359002631,1745619038290,-7074.61,0.00019749,2]
[359002632,1745619038300,-150.99,0.00019749,2]
[359002633,1745619038311,-150.99,0.00019749,2]
[359002634,1745619038322,-12500.0,0.0001975,2]
[359002635,1745619038332,-12500.0,0.00019759,2]
[359002636,1745619038343,-12500.0,0.00019768,2]
[359002637,1745619038353,-789.77220821,0.00019769,2]
[359002638,1745619038364,-12500.0,0.00019777,2]
[359002639,1745619038375,-6509.078,0.00019782,2]
[359002640,1745619038385,-12500.0,0.00019786,2]
[359002641,1745619038395,-789.77220821,0.00019791,2]
[359002642,1745619038404,-167.04036561,0.00019792,2]
[359002643,1745619038414,-12500.0,0.00019794,2]
[359002644,1745619038424,-25868.6289,0.000198,2]
[359002645,1745619038434,-12500.0,0.00019803,2]
[359002646,1745619038444,-12500.0,0.00019812,2]
[359002647,1745619038453,-789.77220821,0.00019812,2]
[359002648,1745619038464,-167.04036561,0.00019819,2]
[359002649,1745619038475,-12500.0,0.00019821,2]
[359002650,1745619038484,-12500.0,0.0001983,2]
[359002651,1745619038495,-789.77220821,0.00019834,2]
[359002652,1745619038504,-12500.0,0.00019838,2]
[359002653,1745619038514,-167.04036561,0.00019846,2]
[359002654,1745619038524,-12500.0,0.00019847,2]
[359002655,1745619038533,-12500.0,0.00019856,2]
[359002656,1745619038543,-789.77220821,0.00019856,2]
[359002657,1745619038553,-12500.0,0.00019865,2]
[359002658,1745619038573,-898.12108993,0.00019873,2]
[359002659,1745619038584,-167.04036561,0.00019873,2]
[359002660,1745619038594,-12500.0,0.00019874,2]
[359002661,1745619038604,-789.77220821,0.00019878,2]
[359002663,1745619038615,-12500.0,0.00019882,2]
[359002664,1745619038625,-12500.0,0.00019891,2]
[359002667,1745619038636,-644.0005,0.00019899,2]
[359002669,1745619038646,-12500.0,0.000199,2]
[359002671,1745619038657,-26864.4988,0.000199,2]
[359002673,1745619038667,-466.25254903,0.000199,2]
[359002675,1745619038678,-717.72842324,0.000199,2]
[359002677,1745619038689,-188.59597844,0.000199,3]
[359002679,1745619038699,-789.77220821,0.000199,2]
[359002681,1745619038710,-1140.34888189,0.000199,2]
[359002683,1745619038721,-167.04036561,0.000199,2]
[359002685,1745619038731,-2285.91862017,0.000199,2]
[359002687,1745619038741,-503.01926751,0.00019973,2]
[359002690,1745619038752,-500.0,0.00019973,2]
[359002692,1745619038763,-500.0,0.00019973,2]
[359002694,1745619038773,-160.82173264,0.00019973,2]
[359002696,1745619038783,-500.0,0.00019973,2]
[359002698,1745619038793,-484.38547257,0.00019973,2]
[359002700,1745619038803,-500.0,0.00019973,2]
[359002702,1745619038813,-150710.8756564,0.00019986,2]
[359002704,1745619038823,-8224.8904478,0.00019986,2]
[359002706,1745619038833,-4414.288933,0.00019986,2]
[359002708,1745619038843,-781.16414095,0.0001999,2]
[359002710,1745619038853,-781.16414095,0.0001999,2]
[359002712,1745619038863,-781.16414095,0.0001999,2]
[359002714,1745619038874,-500.0,0.00019999,2]
[359002716,1745619038883,-500.0,0.00019999,2]
[359002718,1745619038893,-500.0,0.00019999,2]
[359002720,1745619038904,-500.0,0.00019999,2]
[359002723,1745619038914,-500.0,0.00019999,2]
[359002725,1745619038924,-500.0,0.00019999,2]
[359002727,1745619038935,-300.0,0.00019999,2]
[359002729,1745619038945,-300.0,0.00019999,2]
[359002731,1745619038955,-300.0,0.00019999,2]
[359002733,1745619038965,-300.0,0.00019999,2]
[359002735,1745619038975,-300.0,0.00019999,2]
[359002737,1745619038985,-300.0,0.00019999,2]
[359002739,1745619038995,-4343.70865349,0.00019999,2]
[359002742,1745619039010,-982.4922,0.00019999,2]
[359002744,1745619039020,-432.34736317,0.00019999,2]
[359002746,1745619039030,-162.36504887,0.00019999,2]
[359002748,1745619039041,-3451669.13219825,0.0002,2]
[359002750,1745619039056,-2361591.42289538,0.0002,2]
[359002753,1745619039069,-51507.51659311,0.0002,2]
[359002758,1745619039110,-24531.55106111,0.0002,2]
[359002760,1745619039123,-2519.08544243,0.0002,2]
[359002783,1745619040339,-1105.0,0.0002,2]
[359002784,1745619040440,-1528.12619356,0.0002,2]
[359002797,1745619044018,-362.01052238,0.00019999,2]
[359002798,1745619044029,-151.0,0.00019999,2]
[359002799,1745619044040,-46921.05684504,0.0002,2]
[359002800,1745619044119,-22.41165582,0.0002,2]
[359002801,1745619044258,-47380.89604339,0.0002,2]
[359002802,1745619044284,-92950.03495589,0.0002,2]
[359002803,1745619046182,-151.0,0.00019999,2]
[359002804,1745619046192,-362.01052239,0.00019999,2]
[359002805,1745619046203,-4235.33096669,0.0002,2]
[359002806,1745619046377,-13616.8,0.0002,2]
[359002807,1745619046390,-613.2,0.0002,2]
[359002808,1745619046426,-1633.98349418,0.0002,2]
[359002812,1745619088135,-2032.30257187,0.000199,2]
[359002813,1745619088160,-169.72532865,0.000199,2]
[359002814,1745619088184,-3426.48805673,0.000199,2]
[359002815,1745619088208,-500.0,0.00019973,2]
[359002816,1745619088231,-299.89207983,0.00019999,2]
[359002817,1745619088256,-300.0,0.00019999,2]
[359002818,1745619088278,-241.34034825,0.00019999,2]
[359002819,1745619088302,-151.0,0.00019999,2]
[359002820,1745619088329,-35728.25161467,0.0002,2]
[359002822,1745619400782,-37496.82182526,0.00019689,2]
[359002823,1745619459358,220.43,0.00019381,2]
[359002825,1745619641848,1161.09491405,0.00027397,30]
[359002826,1745619686340,2218.81,0.00017296,2]
[359002827,1745619686444,200.0,0.00019213,2]
[359002828,1745619689467,150.0,0.00019137,2]
[359002829,1745619758128,223.13,0.00027425,30]
[359002830,1745619773827,245.399974,0.00019461,2]
[359002832,1745619917737,155.01,0.00018945,2]
[359002833,1745619927997,949.92565338,0.00011,2]
[359002834,1745619962415,5860.42437262,8e-05,2]
[359002835,1745619962439,10000.0,8e-05,2]
[359002836,1745619962461,6930.24554364,8e-05,2]
[359002838,1745620014205,150.0,0.0001892,7]
[359002839,1745620032654,1000.0,0.0001892,2]
[359002849,1745620068634,250.0,0.00018906,2]
[359002851,1745620114585,216.29185762,0.0001,2]
[359002852,1745620123024,4063.71639065,0.00028,60]
[359002975,1745620155135,-2218.81,0.00019559,2]
[359002977,1745620155167,-166.02192526,0.00019599,2]
[359002979,1745620155200,-2181.15700733,0.00019686,2]
[359003003,1745620232192,-4018.92116591,0.00019686,2]
[359003007,1745620232274,-1519.81907589,0.00019686,2]
[359003008,1745620232359,-1247.11792128,0.00019686,2]
[359003009,1745620232380,-1351.34433458,0.00019686,2]
[359003010,1745620232393,-959.69674344,0.00019686,2]
[359003011,1745620232411,-590.00001,0.00019686,2]
[359003037,1745620238385,-2202.3992497,0.00019686,2]
[359003038,1745620238396,-18321.43666693,0.00019689,2]
[359003039,1745620238407,-1200.0,0.00019699,2]
[359003040,1745620238419,-300.0,0.00019699,2]
[359003041,1745620238430,-36430.7999,0.000197,2]
[359003042,1745620238440,-1803.34299753,0.00019715,2]
[359003043,1745620238450,-1988.90925575,0.0001972,2]
[359003044,1745620238461,-514043.37689531,0.00019724,2]
[359003045,1745620238474,-64625.34906403,0.00019724,2]
[359003046,1745620238484,-14070.45550813,0.00019724,2]
[359003047,1745620238496,-41571.12853801,0.00019728,2]
[359003048,1745620238507,-41571.12853801,0.00019741,2]
[359003049,1745620238518,-1988.90925575,0.00019758,2]
[359003050,1745620238530,-26395.27301492,0.00019773,2]
[359003051,1745620238541,-55818.25849219,0.00019777,2]
[359003052,1745620238551,-578668.72595934,0.00019778,2]
[359003053,1745620238561,-26395.27301492,0.00019785,2]
[359003054,1745620238571,-1803.34299753,0.00019787,2]
[359003055,1745620238581,-1148.97618728,0.000198,2]
[359003056,1745620238592,-1845.78608602,0.000198,2]
[359003057,1745620238602,-1845.786086,0.00019811,2]
[359003058,1745620238612,-167.04036561,0.00019826,2]
[359003059,1745620238623,-500.0,0.00019829,2]
[359003060,1745620238636,-636.39032938,0.00019829,2]
[359003061,1745620238646,-48666.3094703,0.0001983,2]
[359003062,1745620238657,-530.53698147,0.0001983,2]
[359003063,1745620238668,-243.7711367,0.0001983,2]
[359003064,1745620238680,-167.04036561,0.00019851,2]
[359003065,1745620238691,-729.82810209,0.0001987,2]
[359003066,1745620238701,-167.04036561,0.00019877,2]
[359003067,1745620238714,-10894.88473042,0.00019886,2]
[359003068,1745620238724,-644.0005,0.00019886,2]
[359003069,1745620238735,-26864.4988,0.00019886,2]
[359003070,1745620238745,-25868.6289,0.00019886,2]
[359003071,1745620238755,-6509.078,0.00019886,2]
[359003072,1745620238765,-10894.8847304,0.00019888,2]
[359003073,1745620238776,-3246.40167582,0.00019889,2]
[359003074,1745620238786,-10894.8847304,0.00019889,2]
[359003075,1745620238797,-10894.8847304,0.00019891,2]
[359003076,1745620238807,-10894.8847304,0.00019892,2]
[359003077,1745620238817,-10894.8847304,0.00019894,2]
[359003078,1745620238828,-10894.8847304,0.00019895,2]
[359003079,1745620238838,-10894.8847304,0.00019897,2]
[359003080,1745620238849,-150.99,0.00019898,2]
[359003081,1745620238858,-10894.8847304,0.00019898,2]
[359003082,1745620238879,-834.85736655,0.000199,2]
[359003083,1745620238891,-58494.88420379,0.000199,2]
[359003084,1745620238902,-10894.8847304,0.000199,2]
[359003085,1745620238911,-540.51032635,0.000199,2]
[359003086,1745620238922,-4744.17633973,0.000199,3]
[359003087,1745620238933,-456.15918552,0.000199,2]
[359003088,1745620238943,-2284.32537116,0.000199,2]
[359003089,1745620238954,-599.81520136,0.000199,2]
[359003090,1745620238968,-179.83863594,0.000199,2]
[359003091,1745620238978,-1697.89801299,0.000199,2]
[359003093,1745620238989,-1148.97618728,0.000199,2]
[359003095,1745620239000,-167.04036561,0.00019902,2]
[359003097,1745620239011,-824.235308,0.00019905,2]
[359003100,1745620239021,-456.15918548,0.00019907,2]
[359003102,1745620239032,-456.15918548,0.00019914,2]
[359003104,1745620239043,-456.15918548,0.00019921,2]
[359003106,1745620239053,-167.04036561,0.00019928,2]
[359003108,1745620239065,-456.15918548,0.00019928,2]
[359003123,1745620239212,-500.0,0.00019973,2]
[359003126,1745620239225,-503.01926751,0.00019973,2]
[359003128,1745620239235,-484.38547257,0.00019973,2]
[359003130,1745620239245,-500.0,0.00019973,2]
[359003132,1745620239255,-500.0,0.00019973,2]
[359003134,1745620239265,-500.0,0.00019973,2]
[359003136,1745620239281,-160.82173264,0.00019973,2]
[359003138,1745620239291,-153.18957804,0.00019973,2]
[359003140,1745620239300,-500.0,0.00019973,2]
[359003142,1745620239310,-203.09944421,0.00019985,2]
[359003143,1745620239320,-174.20997494,0.00019985,2]
[359003145,1745620239329,-500.0,0.00019985,2]
[359003147,1745620239339,-500.0,0.00019985,2]
[359003149,1745620239349,-225.50483583,0.00019985,2]
[359003151,1745620239358,-500.0,0.00019985,2]
[359003153,1745620239368,-500.0,0.00019985,2]
[359003155,1745620239378,-500.0,0.00019985,2]
[359003157,1745620239387,-500.0,0.00019985,2]
[359003159,1745620239397,-500.0,0.00019985,2]
[359003161,1745620239407,-500.0,0.00019985,2]
[359003163,1745620239416,-500.0,0.00019985,2]
[359003165,1745620239426,-500.0,0.00019985,2]
[359003167,1745620239435,-500.0,0.00019985,2]
[359003169,1745620239445,-500.0,0.00019985,2]
[359003171,1745620239455,-300.0,0.00019985,2]
[359003173,1745620239465,-500.0,0.00019985,2]
[359003175,1745620239475,-500.0,0.00019985,2]
[359003177,1745620239486,-500.0,0.00019985,2]
[359003179,1745620239496,-500.0,0.00019985,2]
[359003181,1745620239506,-500.0,0.00019985,2]
[359003182,1745620239516,-500.0,0.00019985,2]
[359003184,1745620239526,-250.0,0.00019985,2]
[359003186,1745620239535,-13559.1537143,0.00019986,2]
[359003188,1745620239546,-4039.6439336,0.00019986,2]
[359003191,1745620239559,-452.4979339,0.00019986,2]
[359003192,1745620239568,-222.1813158,0.00019986,2]
[359003194,1745620239578,-140836.539325,0.00019986,2]
[359003197,1745620239589,-15326.3831262,0.00019986,2]
[359003198,1745620239600,-104898.2039672,0.00019986,2]
[359003200,1745620239611,-781.16414095,0.0001999,2]
[359003202,1745620239620,-781.16414095,0.0001999,2]
[359003204,1745620239631,-781.16414095,0.0001999,2]
[359003206,1745620239642,-300.0,0.00019999,2]
[359003208,1745620239652,-300.0,0.00019999,2]
[359003210,1745620239662,-151.0,0.00019999,2]
[359003213,1745620239673,-2000.0,0.00019999,2]
[359003215,1745620239682,-395.73843404,0.00019999,2]
[359003216,1745620239692,-1874131.08616143,0.0002,2]
[359003219,1745620239702,-7238.35116241,0.0002,2]
[359003221,1745620239714,-301.07610912,0.0002,2]
[359003222,1745620239724,-1481.81958212,0.0002,2]
[359003225,1745620239734,-41232.86796624,0.0002,2]
[359003227,1745620239748,-3051.47448008,0.0002,2]
[359003229,1745620239759,-1804.6,0.0002,2]
[359003231,1745620239768,-5397.0,0.0002,2]
[359003233,1745620239778,-5649.43568783,0.0002,2]
[359003235,1745620239788,-496397.35176271,0.0002,2]
[359003238,1745620239803,-2359648.59346596,0.0002,2]
[359003240,1745620239812,-1009.30157326,0.0002,2]
[359003242,1745620239821,-1757.89332187,0.0002,2]
[359003244,1745620239831,-250.0,0.0002,2]
[359003246,1745620239841,-250.0,0.0002,2]
[359003247,1745620239850,-250.0,0.0002,2]
[359003249,1745620239859,-250.0,0.0002,2]
[359003252,1745620239871,-250.0,0.0002,2]
[359003254,1745620239880,-250.0,0.0002,2]
[359003256,1745620239890,-250.0,0.0002,2]
[359003258,1745620239901,-250.0,0.0002,2]
[359003260,1745620239910,-250.0,0.0002,2]
[359003261,1745620239920,-250.0,0.0002,2]
[359003263,1745620239929,-312.9,0.0002,2]
[359003265,1745620239939,-1000.0,0.0002,2]
[359003267,1745620239949,-1000.0,0.0002,2]
[359003269,1745620239959,-1000.0,0.0002,2]
[359003271,1745620239969,-1000.0,0.0002,2]
[359003273,1745620239979,-1000.0,0.0002,2]
[359003275,1745620239989,-1000.0,0.0002,2]
[359003277,1745620239999,-1000.0,0.0002,2]
[359003279,1745620240009,-1000.0,0.0002,2]
[359003281,1745620240019,-1000.0,0.0002,2]
[359003283,1745620240028,-1000.0,0.0002,2]
[359003285,1745620240038,-1000.0,0.0002,2]
[359003287,1745620240048,-1000.0,0.0002,2]
[359003289,1745620240058,-1000.0,0.0002,2]
[359003291,1745620240068,-1000.0,0.0002,2]
[359003293,1745620240078,-1000.0,0.0002,2]
[359003295,1745620240088,-1000.0,0.0002,2]
[359003297,1745620240098,-1000.0,0.0002,2]
[359003299,1745620240107,-1000.0,0.0002,2]
[359003301,1745620240117,-1000.0,0.0002,2]
[359003303,1745620240127,-1000.0,0.0002,2]
[359003305,1745620240136,-1000.0,0.0002,2]
[359003306,1745620240147,-1000.0,0.0002,2]
[359003307,1745620240157,-1000.0,0.0002,2]
[359003308,1745620240166,-1000.0,0.0002,2]
[359003309,1745620240177,-1000.0,0.0002,2]
[359003310,1745620240192,-1000.0,0.0002,2]
[359003311,1745620240202,-1000.0,0.0002,2]
[359003312,1745620240212,-1000.0,0.0002,2]
[359003313,1745620240222,-1000.0,0.0002,2]
[359003314,1745620240231,-1000.0,0.0002,2]
[359003315,1745620240241,-1000.0,0.0002,2]
[359003316,1745620240251,-695.12302457,0.0002,2]
[359003317,1745620240260,-97394.71361434,0.0002,2]
[359003392,1745620241037,-548.00952576,0.0002,2]
[359003396,1745620241067,-2820.16958094,0.0002,2]
[359003402,1745620241117,-796.78507775,0.0002,2]
[359003686,1745620243967,-2650.86294906,0.00019685,2]
[359003698,1745620244077,-1192.89166437,0.00019685,2]
[359003701,1745620244096,-1000.0,0.00019685,2]
[359003703,1745620244109,-3301.09141369,0.00019685,2]
[359003709,1745620244158,-435.84438426,0.00019685,2]
[359003712,1745620244172,-1621.349066,0.00019685,2]
[359003719,1745620244231,-5183.94049411,0.00019685,2]
[359003770,1745620246402,-1556.34731671,0.00019685,2]
[359003771,1745620246415,-15.65268329,0.00019822,2]
[359003772,1745620246631,-1830.13340271,0.00019822,2]
[359003773,1745620246644,-1845.786086,0.00019833,2]
[359003774,1745620246655,-263.8256227,0.00019999,2]
[359003775,1745620246666,-151.0,0.00019999,2]
[359003776,1745620246678,-96272.71188305,0.0002,2]
[359003808,1745620345824,1603.46259874,0.0001946,2]
[359003809,1745620345849,10000.0,0.0001946,2]
[359003810,1745620345870,10000.0,0.0001946,2]
[359003811,1745620345892,2296.53740126,0.0001946,2]
[359003824,1745620476495,417.92,0.0001889,2]
[359003825,1745620506291,3843.92,0.00019325,2]
[359003851,1745620627527,2006.85,0.000195,2]
[359003853,1745620634067,250.0,0.00017,2]
[359003854,1745620635243,300.0,0.00019,2]
[359003860,1745620647176,884.77259874,0.00018961,2]
[359003861,1745620647200,2259.45740126,0.00018961,2]
[359003880,1745620707101,2350.04,0.0001703,2]
[359003881,1745620707317,2350.04,0.00019294,2]
[359003886,1745620717848,200.0,0.00018948,2]
[359003891,1745620731617,2537.81,0.00018985,2]
[359003898,1745620748141,302.65259874,0.00018965,2]
[359003899,1745620748164,26.70740126,0.00018965,2]
[359003913,1745620791192,204.53,0.00027425,30]
[359003920,1745620812819,6839.87,0.00018954,2]
[359003924,1745620829651,267.875433,0.00019424,2]
[359003937,1745620874426,150.0,0.00018924,2]
[359003945,1745620892520,2715.54716574,0.00018919,2]
[359003946,1745620892545,896.35283426,0.00018919,2]
[359003956,1745620927152,150.0,1e-08,2]
[359003957,1745620929901,7068.41,0.000195,2]
[359003958,1745620930602,1885.23716574,2e-06,2]
[359003959,1745620930624,5183.17283426,2e-06,2]
[359003995,1745621032030,4816.82716574,0.00018913,2]
[359003996,1745621032058,5011.10283426,0.00018913,2]
[359004005,1745621070186,-166.7,0.00019522,2]
[359004006,1745621070212,-23.38528681,0.00019564,2]
[359004009,1745621078697,517.37,0.00018919,2]
[359004012,1745621079676,-150.0,0.00019564,2]
[359004013,1745621082866,-26.61471319,0.00019564,2]
[359004014,1745621082892,-123.38528681,0.00019606,2]
[359004015,1745621083315,250.0,0.00018919,2]
[359004017,1745621086843,-76.61471319,0.00019606,2]
[359004018,1745621086866,-250.0,0.00019606,2]
[359004019,1745621086889,-60.81506333,0.00019721,2]
[359004022,1745621095588,-152.01426016,0.00019721,2]
[359004024,1745621095613,-91.10376426,0.00019722,2]
[359004028,1745621101532,-174.53612511,0.00019722,2]
[359004029,1745621104676,-107.37281063,0.00019722,2]
[359004030,1745621104699,-77.07470345,0.00019786,2]
[359004034,1745621112550,-150.0,0.00019622,2]
[359004035,1745621112574,-6.16,0.00019786,2]
[359004036,1745621115009,186.68,0.0001515,2]
[359004037,1745621116107,-300.0,0.00019786,2]
[359004039,1745621118741,-300.0,0.00019786,2]
[359004041,1745621126261,-180.51226124,0.00019786,2]
[359004043,1745621130671,-182.06382512,0.00019786,2]
[359004047,1745621137009,-210.162021,0.00019786,2]
[359004048,1745621143098,-472.917708,0.00019786,2]
[359004049,1745621146994,-190.55785929,0.00019786,2]
[359004050,1745621149662,-163.0225219,0.00019786,2]
[359004051,1745621149693,-67.33255929,0.00019808,2]
[359004052,1745621154801,-82.66744071,0.00019808,2]
[359004053,1745621154826,-217.33255929,0.00019808,2]
[359004054,1745621156701,-282.66744071,0.00019808,2]
[359004055,1745621156728,-1200.0,0.00019821,2]
[359004056,1745621156754,-300.0,0.00019821,2]
[359004057,1745621156779,-9774.91,0.00019822,2]
[359004058,1745621156805,-500.0,0.00019836,2]
[359004059,1745621156830,-824.235308,0.00019838,2]
[359004060,1745621156855,-150.99,0.00019838,2]
[359004061,1745621156880,-12500.0,0.00019874,2]
[359004062,1745621156904,-12500.0,0.00019882,2]
[359004063,1745621156929,-500.0,0.00019885,2]
[359004064,1745621156963,-500.0,0.00019885,2]
[359004065,1745621156988,-248.93609849,0.00019885,2]
[359004066,1745621157023,-500.0,0.00019885,2]
[359004067,1745621157057,-156.39832549,0.00019885,2]
[359004068,1745621157092,-500.0,0.00019885,2]
[359004069,1745621157121,-155.53509534,0.00019886,2]
[359004070,1745621157148,-25213.2707,0.00019886,2]
[359004071,1745621157181,-155.53509529,0.00019888,2]
[359004072,1745621157210,-155.53509529,0.00019889,2]
[359004073,1745621157239,-3981.96790809,0.0001989,2]
[359004074,1745621157266,-155.53509529,0.00019891,2]
[359004075,1745621157292,-12500.0,0.00019891,2]
[359004076,1745621157319,-155.53509529,0.00019892,2]
[359004077,1745621157346,-155.53509529,0.00019894,2]
[359004078,1745621157372,-155.53509529,0.00019895,2]
[359004079,1745621157400,-155.53509529,0.00019897,2]
[359004080,1745621157427,-155.53509529,0.00019898,2]
[359004081,1745621157454,-7871.6981,0.000199,2]
[359004082,1745621157479,-1405.5238,0.000199,2]
[359004083,1745621157506,-12500.0,0.000199,2]
[359004084,1745621157535,-155.53509529,0.000199,2]
[359004085,1745621157563,-360.34021756,0.000199,2]
[359004086,1745621157591,-11074.716516,0.000199,2]
[359004087,1745621157619,-834.85736655,0.000199,2]
[359004088,1745621157646,-2284.32537116,0.000199,2]
[359004089,1745621157679,-179.83863594,0.000199,2]
[359004090,1745621157708,-38850.54625587,0.000199,2]